fUST/lending_fUST_20251026
["ID","MTS","AMOUNT","RATE_DAILY","PERIOD"]
[392428854,1761465081343,-500.0,0.00018356,2]
[392428855,1761465081351,-500.0,0.00018356,2]
[392428856,1761465081361,-500.0,0.00018356,2]
[392428857,1761465081370,-508.23,0.00018356,2]
[392428858,1761465081379,-730.25,0.00018356,2]
[392428859,1761465081387,-500.0,0.00018356,2]
[392428860,1761465081396,-500.0,0.00018356,2]
[392428861,1761465081405,-1000.0,0.00018356,2]
[392428862,1761465081414,-500.0,0.00018356,2]
[392428863,1761465081423,-500.0,0.00018356,2]
[392428864,1761465081432,-500.0,0.00018356,2]
[392428865,1761465081441,-500.0,0.00018356,2]
[392428866,1761465081450,-500.0,0.00018356,2]
[392428867,1761465081460,-500.0,0.00018356,2]
[392428868,1761465081469,-500.0,0.00018356,2]
[392428869,1761465081479,-500.0,0.00018356,2]
[392428870,1761465081487,-500.0,0.00018356,2]
[392428871,1761465081496,-500.0,0.00018356,2]
[392428872,1761465081507,-638.1,0.00018356,2]
[392428873,1761465081518,-500.0,0.00018356,2]
[392428874,1761465081648,-500.0,0.00018356,2]
[392428875,1761465081658,-500.0,0.00018356,2]
[392428876,1761465081668,-500.0,0.00018356,2]
[392428877,1761465081677,-520.50393958,0.00018356,2]
[392428878,1761465081687,-500.0,0.00018356,2]
[392428879,1761465081696,-500.0,0.00018356,2]
[392428880,1761465081705,-852.77,0.00018356,2]
[392428881,1761465081714,-500.0,0.00018356,2]
[392428882,1761465081723,-742.96,0.00018356,2]
[392428883,1761465081732,-1003.4,0.00018356,2]
[392428884,1761465081741,-1352.49,0.00018356,2]
[392428885,1761465081751,-500.0,0.00018356,2]
[392428886,1761465081760,-1883.36,0.00018356,2]
[392428887,1761465081769,-780.75,0.00018356,2]
[392428888,1761465081778,-747.54,0.00018356,2]
[392428889,1761465081787,-500.0,0.00018356,2]
[392428890,1761465081798,-500.0,0.00018356,2]
[392428891,1761465081807,-500.0,0.00018356,2]
[392428892,1761465081818,-1022.71,0.00018356,2]
[392428893,1761465081830,-500.0,0.00018356,2]
[392428894,1761465081841,-500.0,0.00018356,2]
[392428895,1761465081851,-816.59,0.00018356,2]
[392428896,1761465081861,-1068.51,0.00018356,2]
[392428897,1761465081872,-751.87,0.00018356,2]
[392428898,1761465081881,-1197.52,0.00018356,2]
[392428899,1761465081891,-1161.27,0.00018356,2]
[392428900,1761465081900,-500.0,0.00018356,2]
[392428901,1761465081910,-722.78,0.00018356,2]
[392428902,1761465081920,-1139.52,0.00018356,2]
[392428903,1761465081931,-694.35,0.00018356,2]
[392428904,1761465081941,-1024.4,0.00018356,2]
[392428905,1761465081952,-500.0,0.00018356,2]
[392428906,1761465081962,-500.0,0.00018356,2]
[392428907,1761465081973,-572.68775704,0.00018356,2]
[392428908,1761465081982,-604.05,0.00018356,2]
[392428909,1761465081992,-500.0,0.00018356,2]
[392428910,1761465082002,-500.0,0.00018356,2]
[392428911,1761465082013,-500.0,0.00018356,2]
[392428912,1761465082022,-500.0,0.00018356,2]
[392428913,1761465082031,-720.79,0.00018356,2]
[392428914,1761465082040,-822.01,0.00018356,2]
[392428915,1761465082049,-500.0,0.00018356,2]
[392428916,1761465082058,-1373.22,0.00018356,2]
[392428917,1761465082068,-791.3,0.00018356,2]
[392428918,1761465082077,-500.0,0.00018356,2]
[392428919,1761465082086,-500.0,0.00018356,2]
[392428920,1761465082095,-1124.15,0.00018356,2]
[392428921,1761465082104,-1133.45,0.00018356,2]
[392428922,1761465082113,-500.0,0.00018356,2]
[392428923,1761465082123,-579.37,0.00018356,2]
[392428924,1761465082132,-834.52,0.00018356,2]
[392428925,1761465082141,-734.95,0.00018356,2]
[392428926,1761465082151,-500.0,0.00018356,2]
[392428927,1761465082161,-500.0,0.00018356,2]
[392428928,1761465082170,-500.0,0.00018356,2]
[392428929,1761465082180,-500.0,0.00018356,2]
[392428930,1761465082189,-500.0,0.00018356,2]
[392428931,1761465082198,-500.0,0.00018356,2]
[392428932,1761465082207,-519.96,0.00018356,2]
[392428933,1761465082217,-500.0,0.00018356,2]
[392428934,1761465082227,-500.0,0.00018356,2]
[392428935,1761465082237,-500.0,0.00018356,2]
[392428936,1761465082249,-1043.96,0.00018356,2]
[392428937,1761465082260,-500.0,0.00018356,2]
[392428938,1761465082270,-717.23,0.00018356,2]
[392428939,1761465082279,-500.0,0.00018356,2]
[392428940,1761465082290,-754.11,0.00018356,2]
[392428941,1761465082302,-235.74142366,0.00018356,2]
[392428942,1761465082313,-500.0,0.00018356,2]
[392428943,1761465082323,-500.0,0.00018356,2]
[392428944,1761465082333,-500.0,0.00018356,2]
[392428945,1761465082344,-556.7,0.00018356,2]
[392428946,1761465082353,-596.45,0.00018356,2]
[392428947,1761465082362,-507.75688222,0.00018356,2]
[392428948,1761465082373,-500.0,0.00018356,2]
[392428949,1761465082383,-1625.42,0.00018356,2]
[392428950,1761465082393,-727.75,0.00018356,2]
[392428951,1761465082402,-500.0,0.00018356,2]
[392428952,1761465082411,-500.0,0.00018356,2]
[392428953,1761465082421,-2020.6,0.00018356,2]
[392428954,1761465082432,-500.0,0.00018356,2]
[392428955,1761465082442,-500.0,0.00018356,2]
[392428956,1761465082452,-958.14,0.00018356,2]
[392428957,1761465082462,-500.0,0.00018356,2]
[392428958,1761465082472,-799.25,0.00018356,2]
[392428959,1761465082482,-802.12,0.00018356,2]
[392428960,1761465082492,-500.0,0.00018356,2]
[392428961,1761465082503,-1511.53,0.00018356,2]
[392428962,1761465082513,-536.38,0.00018356,2]
[392428963,1761465082523,-500.0,0.00018356,2]
[392428964,1761465082534,-977.83,0.00018356,2]
[392428965,1761465082545,-1018.09,0.00018356,2]
[392428966,1761465082555,-1217.77,0.00018356,2]
[392428967,1761465082566,-735.46,0.00018356,2]
[392428968,1761465082578,-500.0,0.00018356,2]
[392428969,1761465082587,-500.0,0.00018356,2]
[392428970,1761465082597,-532.95,0.00018356,2]
[392428971,1761465082607,-565.47,0.00018356,2]
[392428972,1761465082616,-928.31,0.00018356,2]
[392428973,1761465082625,-520.86,0.00018356,2]
[392428974,1761465082635,-500.0,0.00018356,2]
[392428975,1761465082645,-500.0,0.00018356,2]
[392428976,1761465082654,-816.06,0.00018356,2]
[392428977,1761465082664,-500.0,0.00018356,2]
[392428978,1761465082674,-1060.12,0.00018356,2]
[392428979,1761465082684,-500.0,0.00018356,2]
[392428980,1761465082694,-992.37,0.00018356,2]
[392428981,1761465082704,-1689.08,0.00018356,2]
[392428982,1761465082715,-1696.5,0.00018356,2]
[392428983,1761465082726,-555.68,0.00018356,2]
[392428984,1761465082737,-500.0,0.00018356,2]
[392428985,1761465082746,-523.61,0.00018356,2]
[392428986,1761465082756,-602.62,0.00018356,2]
[392428987,1761465082766,-804.14,0.00018356,2]
[392428988,1761465082775,-938.7,0.00018356,2]
[392428989,1761465082784,-500.0,0.00018356,2]
[392428990,1761465082793,-1084.59,0.00018356,2]
[392428991,1761465082803,-754.82,0.00018356,2]
[392428992,1761465082812,-672.45,0.00018356,2]
[392428993,1761465082821,-536.64,0.00018356,2]
[392428994,1761465082831,-665.25,0.00018356,2]
[392428995,1761465082839,-1084.62,0.00018356,2]
[392428996,1761465082849,-1054.59,0.00018356,2]
[392428997,1761465082858,-514.82,0.00018356,2]
[392428998,1761465082867,-559.76,0.00018356,2]
[392428999,1761465082876,-500.0,0.00018356,2]
[392429000,1761465082886,-624.18,0.00018356,2]
[392429001,1761465082895,-500.0,0.00018356,2]
[392429002,1761465082904,-588.78,0.00018356,2]
[392429003,1761465082913,-1181.93,0.00018356,2]
[392429004,1761465082923,-913.81,0.00018356,2]
[392429005,1761465082932,-500.0,0.00018356,2]
[392429006,1761465082943,-1623.58,0.00018356,2]
[392429007,1761465082955,-1892.25,0.00018356,2]
[392429008,1761465082964,-500.0,0.00018356,2]
[392429009,1761465082973,-800.75,0.00018356,2]
[392429010,1761465082982,-500.0,0.00018356,2]
[392429011,1761465082993,-932.1,0.00018356,2]
[392429012,1761465083003,-500.0,0.00018356,2]
[392429013,1761465083013,-500.0,0.00018356,2]
[392429014,1761465083022,-2059.92,0.00018356,2]
[392429015,1761465083034,-2314.16,0.00018356,2]
[392429016,1761465083043,-1046.38,0.00018356,2]
[392429017,1761465083053,-500.0,0.00018356,2]
[392429018,1761465083063,-895.81,0.00018356,2]
[392429019,1761465083073,-748.72,0.00018356,2]
[392429020,1761465083082,-500.0,0.00018356,2]
[392429021,1761465083092,-500.0,0.00018356,2]
[392429022,1761465083102,-500.0,0.00018356,2]
[392429023,1761465083112,-1079.65,0.00018356,2]
[392429024,1761465083121,-566.6,0.00018356,2]
[392429025,1761465083131,-1178.12,0.00018356,2]
[392429026,1761465083141,-573.08,0.00018356,2]
[392429027,1761465083151,-1167.47,0.00018356,2]
[392429028,1761465083160,-1376.09,0.00018356,2]
[392429029,1761465083169,-500.0,0.00018356,2]
[392429030,1761465083179,-1805.66,0.00018356,2]
[392429031,1761465083188,-800.28,0.00018356,2]
[392429032,1761465083198,-504.37,0.00018356,2]
[392429033,1761465083208,-500.0,0.00018356,2]
[392429034,1761465083217,-1306.14,0.00018356,2]
[392429035,1761465083227,-578.74,0.00018356,2]
[392429036,1761465083236,-2926.42,0.00018356,2]
[392429037,1761465083246,-513.65944122,0.00018356,2]
[392429038,1761465083255,-1800.49,0.00018356,2]
[392429039,1761465083265,-12323.94,0.00018356,2]
[392429040,1761465083274,-500.0,0.00018356,2]
[392429041,1761465083283,-860.45,0.00018356,2]
[392429042,1761465083291,-677.74,0.00018356,2]
[392429043,1761465083300,-1339.94,0.00018356,2]
[392429044,1761465083310,-1341.4,0.00018356,2]
[392429045,1761465083319,-577.94,0.00018356,2]
[392429046,1761465083328,-500.0,0.00018356,2]
[392429047,1761465083337,-500.0,0.00018356,2]
[392429048,1761465083347,-163.17280106,0.00018384,2]
[392429049,1761465083356,-187.10934598,0.000184,2]
[392429050,1761465083365,-191.8197303,0.000184,2]
[392429051,1761465083373,-951.16426813,0.000184,2]
[392429052,1761465083383,-884.55199446,0.000184,2]
[392429053,1761465083392,-173.74614518,0.000184,2]
[392429054,1761465083401,-3389.76773074,0.000184,2]
[392429055,1761465083410,-623.70302502,0.00018416,2]
[392429056,1761465083420,-2000.0,0.00018416,2]
[392429057,1761465083429,-1936.08998776,0.00018416,2]
[392429058,1761465083438,-1365.85294921,0.00018416,2]
[392429059,1761465083447,-2000.0,0.00018416,2]
[392429060,1761465083456,-1514.82830615,0.00018416,2]
[392429061,1761465083466,-2000.0,0.00018416,2]
[392429062,1761465083475,-2000.0,0.00018416,2]
[392429063,1761465083485,-1054.55131494,0.00018416,2]
[392429064,1761465083495,-2000.0,0.00018416,2]
[392429065,1761465083504,-2000.0,0.00018416,2]
[392429066,1761465083514,-2000.0,0.00018416,2]
[392429067,1761465083523,-2000.0,0.00018416,2]
[392429068,1761465083532,-435.32949454,0.00018416,2]
[392429069,1761465083542,-1951.95407939,0.00018416,2]
[392429070,1761465083551,-2000.0,0.00018416,2]
[392429071,1761465083560,-2000.0,0.00018416,2]
[392429072,1761465083569,-2000.0,0.00018416,2]
[392429073,1761465083578,-2000.0,0.00018416,2]
[392429074,1761465083587,-2000.0,0.00018416,2]
[392429075,1761465083596,-1414.24518786,0.00018416,2]
[392429076,1761465083606,-2000.0,0.00018416,2]
[392429077,1761465083615,-2000.0,0.00018416,2]
[392429078,1761465083625,-2000.0,0.00018416,2]
[392429079,1761465083634,-2000.0,0.00018416,2]
[392429080,1761465083644,-2000.0,0.00018416,2]
[392429081,1761465083654,-2000.0,0.00018416,2]
[392429082,1761465083663,-2000.0,0.00018416,2]
[392429083,1761465083672,-2000.0,0.00018416,2]
[392429084,1761465083683,-1921.03543512,0.00018416,2]
[392429085,1761465083692,-2000.0,0.00018416,2]
[392429086,1761465083701,-819.10745739,0.00018416,2]
[392429087,1761465083710,-2000.0,0.00018416,2]
[392429088,1761465083719,-2000.0,0.00018416,2]
[392429089,1761465083728,-2000.0,0.00018416,2]
[392429090,1761465083737,-600.3222672,0.00018416,2]
[392429091,1761465083746,-163.17280106,0.00018466,2]
[392429092,1761465083755,-168.354034,0.00018493,2]
[392429093,1761465083881,-1500.0,0.000185,2]
[392429094,1761465083891,-1500.0,0.000185,2]
[392429095,1761465083901,-1500.0,0.000185,2]
[392429096,1761465083910,-1500.0,0.000185,2]
[392429097,1761465083919,-1500.0,0.000185,2]
[392429098,1761465083928,-1500.0,0.000185,2]
[392429099,1761465083938,-1500.0,0.000185,2]
[392429100,1761465083952,-1500.0,0.000185,2]
[392429101,1761465083961,-1500.0,0.000185,2]
[392429102,1761465083970,-1500.0,0.000185,2]
[392429103,1761465083980,-1500.0,0.000185,2]
[392429104,1761465083989,-427.99,0.000185,2]
[392429105,1761465083999,-191.8197303,0.000185,2]
[392429106,1761465084008,-951.16426813,0.000185,2]
[392429107,1761465084018,-884.55199446,0.000185,2]
[392429108,1761465084027,-173.74614518,0.000185,2]
[392429109,1761465084036,-3389.76773074,0.000185,2]
[392429110,1761465084046,-250.0,0.000185,2]
[392429111,1761465084056,-3095.42,0.00018521,2]
[392429112,1761465084066,-238.13839871,0.00018525,2]
[392429113,1761465084075,-342.955187,0.00018525,2]
[392429114,1761465084085,-158.26768916,0.00018525,2]
[392429115,1761465084095,-331.0,0.00018534,2]
[392429116,1761465084104,-238.03,0.00018539,2]
[392429117,1761465084114,-600.0,0.00018546,2]
[392429118,1761465084125,-163.17280106,0.00018548,2]
[392429119,1761465084136,-1161.78505326,0.00018595,4]
[392429120,1761465084145,-281.4,0.000186,2]
[392429121,1761465084155,-4582.2532461,0.00018623,2]
[392429122,1761465084165,-580.25553244,0.0001863,2]
[392429123,1761465084175,-500.0,0.0001863,2]
[392429124,1761465084184,-500.0,0.0001863,2]
[392429125,1761465084194,-500.0,0.0001863,2]
[392429126,1761465084203,-500.0,0.0001863,2]
[392429127,1761465084213,-500.0,0.0001863,2]
[392429128,1761465084222,-508.23,0.0001863,2]
[392429129,1761465084232,-730.25,0.0001863,2]
[392429130,1761465084241,-500.0,0.0001863,2]
[392429131,1761465084251,-500.0,0.0001863,2]
[392429132,1761465084260,-800.90851776,0.0001863,2]
[392429133,1761465084269,-500.0,0.0001863,2]
[392429134,1761465084278,-500.0,0.0001863,2]
[392429135,1761465084287,-500.0,0.0001863,2]
[392429136,1761465084296,-500.0,0.0001863,2]
[392429137,1761465084304,-500.0,0.0001863,2]
[392429138,1761465084313,-500.0,0.0001863,2]
[392429139,1761465084322,-500.0,0.0001863,2]
[392429140,1761465084331,-500.0,0.0001863,2]
[392429141,1761465084341,-500.0,0.0001863,2]
[392429142,1761465084350,-500.0,0.0001863,2]
[392429143,1761465084359,-638.1,0.0001863,2]
[392429144,1761465084367,-500.0,0.0001863,2]
[392429145,1761465084378,-500.0,0.0001863,2]
[392429146,1761465084388,-500.0,0.0001863,2]
[392429147,1761465084397,-500.0,0.0001863,2]
[392429148,1761465084406,-500.0,0.0001863,2]
[392429149,1761465084415,-852.77,0.0001863,2]
[392429150,1761465084424,-509.6975569,0.0001863,2]
[392429151,1761465084434,-742.96,0.0001863,2]
[392429152,1761465084443,-1003.4,0.0001863,2]
[392429153,1761465084453,-1352.49,0.0001863,2]
[392429154,1761465084462,-500.0,0.0001863,2]
[392429155,1761465084471,-1883.36,0.0001863,2]
[392429156,1761465084480,-780.75,0.0001863,2]
[392429157,1761465084489,-747.54,0.0001863,2]
[392429158,1761465084498,-500.0,0.0001863,2]
[392429159,1761465084507,-500.0,0.0001863,2]
[392429160,1761465084518,-500.0,0.0001863,2]
[392429161,1761465084528,-1022.71,0.0001863,2]
[392429162,1761465084539,-500.0,0.0001863,2]
[392429163,1761465084550,-500.0,0.0001863,2]
[392429164,1761465084560,-816.59,0.0001863,2]
[392429165,1761465084569,-1068.51,0.0001863,2]
[392429166,1761465084578,-751.87,0.0001863,2]
[392429167,1761465084587,-1197.52,0.0001863,2]
[392429168,1761465084596,-1161.27,0.0001863,2]
[392429169,1761465084605,-500.0,0.0001863,2]
[392429170,1761465084614,-722.78,0.0001863,2]
[392429171,1761465084623,-1139.52,0.0001863,2]
[392429172,1761465084634,-694.35,0.0001863,2]
[392429173,1761465084644,-1024.4,0.0001863,2]
[392429174,1761465084654,-500.0,0.0001863,2]
[392429175,1761465084666,-500.0,0.0001863,2]
[392429176,1761465084677,-604.05,0.0001863,2]
[392429177,1761465084688,-500.0,0.0001863,2]
[392429178,1761465084697,-500.0,0.0001863,2]
[392429179,1761465084706,-500.0,0.0001863,2]
[392429180,1761465084715,-500.0,0.0001863,2]
[392429181,1761465084726,-720.79,0.0001863,2]
[392429182,1761465084736,-822.01,0.0001863,2]
[392429183,1761465084746,-544.63885598,0.0001863,2]
[392429184,1761465084756,-1373.22,0.0001863,2]
[392429185,1761465084766,-791.3,0.0001863,2]
[392429186,1761465084776,-274.85691372,0.0001863,2]
[392429187,1761465084785,-500.0,0.0001863,2]
[392429188,1761465084795,-1124.15,0.0001863,2]
[392429189,1761465084804,-1133.45,0.0001863,2]
[392429190,1761465084814,-500.0,0.0001863,2]
[392429191,1761465084822,-579.37,0.0001863,2]
[392429192,1761465084832,-834.52,0.0001863,2]
[392429193,1761465084841,-734.95,0.0001863,2]
[392429194,1761465084850,-500.0,0.0001863,2]
[392429195,1761465084860,-500.0,0.0001863,2]
[392429196,1761465084869,-500.0,0.0001863,2]
[392429197,1761465084880,-500.0,0.0001863,2]
[392429198,1761465084890,-500.0,0.0001863,2]
[392429199,1761465084900,-500.0,0.0001863,2]
[392429200,1761465084909,-519.96,0.0001863,2]
[392429201,1761465084918,-500.0,0.0001863,2]
[392429202,1761465084928,-500.0,0.0001863,2]
[392429203,1761465084938,-500.0,0.0001863,2]
[392429204,1761465084951,-1043.96,0.0001863,2]
[392429205,1761465084960,-500.0,0.0001863,2]
[392429206,1761465084970,-717.23,0.0001863,2]
[392429207,1761465084980,-500.0,0.0001863,2]
[392429208,1761465084990,-754.11,0.0001863,2]
[392429209,1761465084999,-500.0,0.0001863,2]
[392429210,1761465085008,-500.0,0.0001863,2]
[392429211,1761465085018,-500.0,0.0001863,2]
[392429212,1761465085028,-556.7,0.0001863,2]
[392429213,1761465085036,-596.45,0.0001863,2]
[392429214,1761465085046,-500.0,0.0001863,2]
[392429215,1761465085055,-1625.42,0.0001863,2]
[392429216,1761465085064,-727.75,0.0001863,2]
[392429217,1761465085075,-500.0,0.0001863,2]
[392429218,1761465085084,-500.0,0.0001863,2]
[392429219,1761465085093,-2020.6,0.0001863,2]
[392429220,1761465085103,-500.0,0.0001863,2]
[392429221,1761465085112,-500.0,0.0001863,2]
[392429222,1761465085121,-958.14,0.0001863,2]
[392429223,1761465085130,-500.0,0.0001863,2]
[392429224,1761465085139,-799.25,0.0001863,2]
[392429225,1761465085150,-802.12,0.0001863,2]
[392429226,1761465085160,-630.36957024,0.0001863,2]
[392429227,1761465085169,-1511.53,0.0001863,2]
[392429228,1761465085180,-536.38,0.0001863,2]
[392429229,1761465085189,-498.42662097,0.0001863,2]
[392429230,1761465085198,-977.83,0.0001863,2]
[392429231,1761465085207,-1018.09,0.0001863,2]
[392429232,1761465085216,-1217.77,0.0001863,2]
[392429233,1761465085226,-735.46,0.0001863,2]
[392429234,1761465085236,-500.0,0.0001863,2]
[392429235,1761465085244,-500.0,0.0001863,2]
[392429236,1761465085253,-532.95,0.0001863,2]
[392429237,1761465085263,-565.47,0.0001863,2]
[392429238,1761465085272,-928.31,0.0001863,2]
[392429239,1761465085280,-520.86,0.0001863,2]
[392429240,1761465085289,-500.0,0.0001863,2]
[392429241,1761465085298,-500.0,0.0001863,2]
[392429242,1761465085308,-816.06,0.0001863,2]
[392429243,1761465085316,-581.78010859,0.0001863,2]
[392429244,1761465085325,-1060.12,0.0001863,2]
[392429245,1761465085333,-500.0,0.0001863,2]
[392429246,1761465085342,-992.37,0.0001863,2]
[392429247,1761465085351,-1689.08,0.0001863,2]
[392429248,1761465085360,-1696.5,0.0001863,2]
[392429249,1761465085370,-500.0,0.0001863,2]
[392429250,1761465085380,-555.68,0.0001863,2]
[392429251,1761465085390,-523.61,0.0001863,2]
[392429252,1761465085401,-602.62,0.0001863,2]
[392429253,1761465085411,-804.14,0.0001863,2]
[392429254,1761465085421,-938.7,0.0001863,2]
[392429255,1761465085432,-500.0,0.0001863,2]
[392429256,1761465085441,-1084.59,0.0001863,2]
[392429257,1761465085451,-754.82,0.0001863,2]
[392429258,1761465085460,-672.45,0.0001863,2]
[392429259,1761465085469,-536.64,0.0001863,2]
[392429260,1761465085479,-665.25,0.0001863,2]
[392429261,1761465085488,-1084.62,0.0001863,2]
[392429262,1761465085497,-1054.59,0.0001863,2]
[392429263,1761465085506,-514.82,0.0001863,2]
[392429264,1761465085515,-559.76,0.0001863,2]
[392429265,1761465085524,-500.0,0.0001863,2]
[392429266,1761465085533,-624.18,0.0001863,2]
[392429267,1761465085543,-500.0,0.0001863,2]
[392429268,1761465085554,-588.78,0.0001863,2]
[392429269,1761465085564,-1181.93,0.0001863,2]
[392429270,1761465085573,-913.81,0.0001863,2]
[392429271,1761465085583,-500.0,0.0001863,2]
[392429272,1761465085594,-1623.58,0.0001863,2]
[392429273,1761465085604,-1892.25,0.0001863,2]
[392429274,1761465085614,-500.0,0.0001863,2]
[392429275,1761465085624,-800.75,0.0001863,2]
[392429276,1761465085634,-500.0,0.0001863,2]
[392429277,1761465085643,-932.1,0.0001863,2]
[392429278,1761465085655,-500.0,0.0001863,2]
[392429279,1761465085665,-500.0,0.0001863,2]
[392429280,1761465085675,-2059.92,0.0001863,2]
[392429281,1761465085687,-2314.16,0.0001863,2]
[392429282,1761465085699,-1046.38,0.0001863,2]
[392429283,1761465085709,-500.0,0.0001863,2]
[392429284,1761465085719,-895.81,0.0001863,2]
[392429285,1761465085732,-748.72,0.0001863,2]
[392429286,1761465085741,-500.0,0.0001863,2]
[392429287,1761465085751,-500.0,0.0001863,2]
[392429288,1761465085760,-500.0,0.0001863,2]
[392429289,1761465085769,-1079.65,0.0001863,2]
[392429290,1761465085779,-566.6,0.0001863,2]
[392429291,1761465085791,-1178.12,0.0001863,2]
[392429292,1761465085801,-573.08,0.0001863,2]
[392429293,1761465085810,-1167.47,0.0001863,2]
[392429294,1761465085820,-1376.09,0.0001863,2]
[392429295,1761465085940,-500.0,0.0001863,2]
[392429296,1761465085955,-1805.66,0.0001863,2]
[392429297,1761465085965,-800.28,0.0001863,2]
[392429298,1761465085974,-504.37,0.0001863,2]
[392429299,1761465085983,-500.0,0.0001863,2]
[392429300,1761465085993,-1306.14,0.0001863,2]
[392429301,1761465086002,-578.74,0.0001863,2]
[392429302,1761465086012,-2926.42,0.0001863,2]
[392429303,1761465086022,-1800.49,0.0001863,2]
[392429304,1761465086033,-12323.94,0.0001863,2]
[392429305,1761465086042,-500.0,0.0001863,2]
[392429306,1761465086051,-860.45,0.0001863,2]
[392429307,1761465086061,-677.74,0.0001863,2]
[392429308,1761465086071,-1339.94,0.0001863,2]
[392429309,1761465086080,-1341.4,0.0001863,2]
[392429310,1761465086089,-577.94,0.0001863,2]
[392429311,1761465086099,-500.0,0.0001863,2]
[392429312,1761465086108,-505.29045122,0.0001863,2]
[392429313,1761465086117,-163.17280106,0.00018658,2]
[392429314,1761465086126,-2142.25,0.00018658,2]
[392429315,1761465086136,-360.0,0.00018692,2]
[392429316,1761465086147,-951.16426813,0.000187,2]
[392429317,1761465086156,-173.74614518,0.000187,2]
[392429318,1761465086167,-884.55199446,0.000187,2]
[392429319,1761465086177,-3389.76773074,0.000187,2]
[392429320,1761465086188,-2900.0,0.0001873,2]
[392429321,1761465086197,-600.0,0.00018738,2]
[392429322,1761465086206,-163.17280106,0.0001874,2]
[392429323,1761465086216,-3095.42,0.00018795,2]
[392429324,1761465086226,-4000.0,0.00018808,2]
[392429325,1761465086235,-4000.0,0.00018808,2]
[392429326,1761465086247,-4000.0,0.00018808,2]
[392429327,1761465086259,-4000.0,0.00018808,2]
[392429328,1761465086269,-4000.0,0.00018808,2]
[392429329,1761465086279,-4000.0,0.00018808,2]
[392429330,1761465086289,-4000.0,0.00018808,2]
[392429331,1761465086298,-163.17280106,0.00018822,2]
[392429332,1761465086307,-3389.76773074,0.000189,2]
[392429333,1761465086318,-303.03636376,0.000189,2]
[392429334,1761465086328,-500.0,0.00018904,2]
[392429335,1761465086338,-500.0,0.00018904,2]
[392429336,1761465086347,-500.0,0.00018904,2]
[392429337,1761465086356,-500.0,0.00018904,2]
[392429338,1761465086366,-500.0,0.00018904,2]
[392429339,1761465086376,-508.23,0.00018904,2]
[392429340,1761465086388,-730.25,0.00018904,2]
[392429341,1761465086398,-500.0,0.00018904,2]
[392429342,1761465086408,-500.0,0.00018904,2]
[392429343,1761465086418,-500.0,0.00018904,2]
[392429344,1761465086428,-500.0,0.00018904,2]
[392429345,1761465086438,-500.0,0.00018904,2]
[392429346,1761465086450,-500.0,0.00018904,2]
[392429347,1761465086460,-500.0,0.00018904,2]
[392429348,1761465086472,-500.0,0.00018904,2]
[392429349,1761465086482,-500.0,0.00018904,2]
[392429350,1761465086494,-500.0,0.00018904,2]
[392429351,1761465086504,-580.04852514,0.00018904,2]
[392429352,1761465086514,-500.0,0.00018904,2]
[392429353,1761465086525,-638.1,0.00018904,2]